fUSD/lending_fUSD_20241127
["ID","MTS","AMOUNT","RATE_DAILY","PERIOD"]
[343597712,1732743038542,-500.0,9.999e-05,2]
[343597713,1732743038551,-500.0,9.999e-05,2]
[343597714,1732743038560,-500.0,9.999e-05,2]
[343597715,1732743038570,-500.0,9.999e-05,2]
[343597716,1732743038581,-500.0,9.999e-05,2]
[343597717,1732743038591,-265.28690604,9.999e-05,2]
[343597718,1732743038600,-500.0,9.999e-05,2]
[343597719,1732743038610,-500.0,9.999e-05,2]
[343597720,1732743038620,-500.0,9.999e-05,2]
[343597721,1732743038630,-500.0,9.999e-05,2]
[343597722,1732743038639,-500.0,9.999e-05,2]
[343597723,1732743038649,-335.89,9.999e-05,2]
[343597724,1732743038659,-500.0,9.999e-05,2]
[343597725,1732743038669,-500.0,9.999e-05,2]
[343597726,1732743038680,-500.0,9.999e-05,2]
[343597727,1732743038690,-500.0,9.999e-05,2]
[343597728,1732743038699,-500.0,9.999e-05,2]
[343597729,1732743038709,-542.22,9.999e-05,2]
[343597730,1732743038719,-500.0,9.999e-05,2]
[343597731,1732743038728,-500.0,9.999e-05,2]
[343597732,1732743038738,-500.0,9.999e-05,2]
[343597733,1732743038748,-675.5,9.999e-05,2]
[343597734,1732743038758,-500.0,9.999e-05,2]
[343597735,1732743038768,-500.0,9.999e-05,2]
[343597736,1732743038777,-500.0,9.999e-05,2]
[343597737,1732743038787,-500.0,9.999e-05,2]
[343597738,1732743038797,-269.83,9.999e-05,2]
[343597740,1732743038806,-500.0,9.999e-05,2]
[343597742,1732743038816,-500.0,9.999e-05,2]
[343597744,1732743038828,-500.0,9.999e-05,2]
[343597746,1732743038841,-178.01,9.999e-05,2]
[343597748,1732743038850,-441.02,9.999e-05,2]
[343597750,1732743038859,-628.54,9.999e-05,2]
[343597752,1732743038870,-500.0,9.999e-05,2]
[343597754,1732743038879,-500.0,9.999e-05,2]
[343597756,1732743038888,-500.0,9.999e-05,2]
[343597758,1732743038897,-500.0,9.999e-05,2]
[343597760,1732743038907,-500.0,9.999e-05,2]
[343597762,1732743038917,-500.0,9.999e-05,2]
[343597764,1732743038927,-500.0,9.999e-05,2]
[343597766,1732743038936,-500.0,9.999e-05,2]
[343597768,1732743038946,-168.13,9.999e-05,2]
[343597770,1732743038956,-600.34,9.999e-05,2]
[343597772,1732743038965,-500.0,9.999e-05,2]
[343597774,1732743038975,-217.57,9.999e-05,2]
[343597776,1732743038985,-500.0,9.999e-05,2]
[343597778,1732743038994,-500.0,9.999e-05,2]
[343597780,1732743039003,-500.0,9.999e-05,2]
[343597782,1732743039013,-520.60400606,9.999e-05,2]
[343597784,1732743039023,-225.83049987,9.999e-05,2]
[343597786,1732743039032,-500.0,9.999e-05,2]
[343597788,1732743039041,-500.0,9.999e-05,2]
[343597790,1732743039051,-500.0,9.999e-05,2]
[343597792,1732743039060,-497.62,9.999e-05,2]
[343597794,1732743039069,-593.35,9.999e-05,2]
[343597796,1732743039082,-500.0,9.999e-05,2]
[343597798,1732743039091,-500.0,9.999e-05,2]
[343597800,1732743039100,-188.38,9.999e-05,2]
[343597802,1732743039110,-500.0,9.999e-05,2]
[343597804,1732743039120,-500.0,9.999e-05,2]
[343597806,1732743039129,-170.23,9.999e-05,2]
[343597808,1732743039138,-500.0,9.999e-05,2]
[343597810,1732743039148,-500.0,9.999e-05,2]
[343597812,1732743039157,-500.0,9.999e-05,2]
[343597814,1732743039166,-500.0,9.999e-05,2]
[343597816,1732743039175,-500.0,9.999e-05,2]
[343597818,1732743039184,-500.0,9.999e-05,2]
[343597820,1732743039194,-500.0,9.999e-05,2]
[343597822,1732743039204,-627.3,9.999e-05,2]
[343597824,1732743039214,-500.0,9.999e-05,2]
[343597826,1732743039223,-500.0,9.999e-05,2]
[343597828,1732743039233,-500.0,9.999e-05,2]
[343597829,1732743039242,-171.68,9.999e-05,2]
[343597830,1732743039252,-504.41,9.999e-05,2]
[343597831,1732743039261,-500.0,9.999e-05,2]
[343597832,1732743039271,-500.0,9.999e-05,2]
[343597833,1732743039280,-500.0,9.999e-05,2]
[343597834,1732743039290,-500.0,9.999e-05,2]
[343597835,1732743039299,-500.0,9.999e-05,2]
[343597836,1732743039308,-500.0,9.999e-05,2]
[343597837,1732743039318,-500.0,9.999e-05,2]
[343597838,1732743039330,-500.0,9.999e-05,2]
[343597839,1732743039339,-500.0,9.999e-05,2]
[343597840,1732743039348,-500.0,9.999e-05,2]
[343597841,1732743039358,-500.0,9.999e-05,2]
[343597842,1732743039367,-500.0,9.999e-05,2]
[343597843,1732743039377,-500.0,9.999e-05,2]
[343597844,1732743039387,-500.0,9.999e-05,2]
[343597845,1732743039396,-432.73,9.999e-05,2]
[343597846,1732743039406,-500.0,9.999e-05,2]
[343597847,1732743039416,-500.0,9.999e-05,2]
[343597848,1732743039425,-500.0,9.999e-05,2]
[343597849,1732743039435,-500.0,9.999e-05,2]
[343597850,1732743039445,-363.83,9.999e-05,2]
[343597851,1732743039455,-500.0,9.999e-05,2]
[343597852,1732743039465,-300.44,9.999e-05,2]
[343597853,1732743039474,-500.0,9.999e-05,2]
[343597854,1732743039484,-547.81,9.999e-05,2]
[343597855,1732743039493,-500.0,9.999e-05,2]
[343597856,1732743039503,-500.0,9.999e-05,2]
[343597857,1732743039513,-500.0,9.999e-05,2]
[343597858,1732743039523,-500.0,9.999e-05,2]
[343597859,1732743039533,-500.0,9.999e-05,2]
[343597860,1732743039543,-177.52,9.999e-05,2]
[343597861,1732743039554,-500.0,9.999e-05,2]
[343597862,1732743039563,-500.0,9.999e-05,2]
[343597863,1732743039573,-500.0,9.999e-05,2]
[343597864,1732743039584,-500.0,9.999e-05,2]
[343597865,1732743039594,-500.0,9.999e-05,2]
[343597866,1732743039604,-468.23,9.999e-05,2]
[343597867,1732743039614,-500.0,9.999e-05,2]
[343597868,1732743039623,-500.0,9.999e-05,2]
[343597869,1732743039632,-445.46307452,9.999e-05,2]
[343597870,1732743039645,-500.0,9.999e-05,2]
[343597871,1732743039656,-500.0,9.999e-05,2]
[343597872,1732743039666,-500.0,9.999e-05,2]
[343597873,1732743039677,-627.48,9.999e-05,2]
[343597874,1732743039688,-500.0,9.999e-05,2]
[343597875,1732743039700,-544.77,9.999e-05,2]
[343597876,1732743039709,-638.79,9.999e-05,2]
[343597878,1732743039718,-500.0,9.999e-05,2]
[343597879,1732743039727,-500.0,9.999e-05,2]
[343597880,1732743039736,-500.0,9.999e-05,2]
[343597881,1732743039746,-500.0,9.999e-05,2]
[343597882,1732743039755,-500.0,9.999e-05,2]
[343597883,1732743039764,-537.34,9.999e-05,2]
[343597884,1732743039773,-500.0,9.999e-05,2]
[343597885,1732743039782,-500.0,9.999e-05,2]
[343597886,1732743039791,-461.03,9.999e-05,2]
[343597887,1732743039801,-500.0,9.999e-05,2]
[343597888,1732743039810,-531.08,9.999e-05,2]
[343597889,1732743039819,-500.0,9.999e-05,2]
[343597891,1732743039834,-500.0,9.999e-05,2]
[343597893,1732743039843,-333.33,9.999e-05,2]
[343597894,1732743039852,-500.0,9.999e-05,2]
[343597895,1732743039862,-500.0,9.999e-05,2]
[343597896,1732743039873,-500.0,9.999e-05,2]
[343597897,1732743039882,-605.17,9.999e-05,2]
[343597898,1732743039892,-500.0,9.999e-05,2]
[343597899,1732743039901,-500.0,9.999e-05,2]
[343597900,1732743039911,-501.66436501,9.999e-05,2]
[343597901,1732743039920,-500.0,9.999e-05,2]
[343597902,1732743039929,-500.0,9.999e-05,2]
[343597903,1732743039938,-500.0,9.999e-05,2]
[343597904,1732743039950,-500.0,9.999e-05,2]
[343597905,1732743039959,-500.0,9.999e-05,2]
[343597906,1732743039968,-500.0,9.999e-05,2]
[343597907,1732743039977,-500.0,9.999e-05,2]
[343597908,1732743039987,-500.0,9.999e-05,2]
[343597909,1732743039998,-255.75,9.999e-05,2]
[343597910,1732743040008,-500.0,9.999e-05,2]
[343597911,1732743040018,-310.78,9.999e-05,2]
[343597912,1732743040027,-500.0,9.999e-05,2]
[343597913,1732743040038,-500.0,9.999e-05,2]
[343597914,1732743040047,-234.41,9.999e-05,2]
[343597915,1732743040057,-500.0,9.999e-05,2]
[343597916,1732743040067,-500.0,9.999e-05,2]
[343597917,1732743040078,-150.9,9.999e-05,2]
[343597918,1732743040088,-500.0,9.999e-05,2]
[343597919,1732743040097,-500.0,9.999e-05,2]
[343597920,1732743040106,-500.0,9.999e-05,2]
[343597921,1732743040115,-500.0,9.999e-05,2]
[343597922,1732743040124,-500.0,9.999e-05,2]
[343597923,1732743040134,-233.16,9.999e-05,2]
[343597924,1732743040143,-500.0,9.999e-05,2]
[343597925,1732743040152,-500.0,9.999e-05,2]
[343597926,1732743040161,-500.0,9.999e-05,2]
[343597927,1732743040170,-500.0,9.999e-05,2]
[343597928,1732743040179,-500.0,9.999e-05,2]
[343597929,1732743040188,-294.66,9.999e-05,2]
[343597930,1732743040197,-153.53,9.999e-05,2]
[343597931,1732743040207,-500.0,9.999e-05,2]
[343597932,1732743040215,-602.56078093,9.999e-05,2]
[343597933,1732743040225,-500.0,9.999e-05,2]
[343597934,1732743040234,-500.0,9.999e-05,2]
[343597935,1732743040243,-500.0,9.999e-05,2]
[343597936,1732743040252,-500.0,9.999e-05,2]
[343597937,1732743040261,-500.0,9.999e-05,2]
[343597938,1732743040270,-603.0710838,9.999e-05,2]
[343597939,1732743040279,-500.0,9.999e-05,2]
[343597940,1732743040288,-500.0,9.999e-05,2]
[343597941,1732743040298,-500.0,9.999e-05,2]
[343597942,1732743040307,-500.0,9.999e-05,2]
[343597943,1732743040316,-500.0,9.999e-05,2]
[343597944,1732743040325,-500.0,9.999e-05,2]
[343597946,1732743040337,-286.36,9.999e-05,2]
[343597948,1732743040346,-500.0,9.999e-05,2]
[343597950,1732743040356,-642.35,9.999e-05,2]
[343597952,1732743040365,-500.0,9.999e-05,2]
[343597954,1732743040374,-500.0,9.999e-05,2]
[343597956,1732743040384,-500.0,9.999e-05,2]
[343597957,1732743040393,-500.0,9.999e-05,2]
[343597958,1732743040403,-500.0,9.999e-05,2]
[343597959,1732743040412,-500.0,9.999e-05,2]
[343597961,1732743040421,-500.0,9.999e-05,2]
[343597963,1732743040430,-500.0,9.999e-05,2]
[343597964,1732743040439,-267.9,9.999e-05,2]
[343597965,1732743040448,-417.05736494,9.999e-05,2]
[343597966,1732743040457,-500.0,9.999e-05,2]
[343597967,1732743040467,-500.0,9.999e-05,2]
[343597968,1732743040476,-500.0,9.999e-05,2]
[343597969,1732743040486,-500.0,9.999e-05,2]
[343597970,1732743040495,-500.0,9.999e-05,2]
[343597971,1732743040504,-500.0,9.999e-05,2]
[343597972,1732743040514,-500.0,9.999e-05,2]
[343597973,1732743040524,-500.0,9.999e-05,2]
[343597974,1732743040533,-545.69,9.999e-05,2]
[343597975,1732743040542,-594.66,9.999e-05,2]
[343597976,1732743040552,-500.0,9.999e-05,2]
[343597977,1732743040561,-500.0,9.999e-05,2]
[343597978,1732743040571,-500.0,9.999e-05,2]
[343597979,1732743040583,-500.0,9.999e-05,2]
[343597980,1732743040592,-500.0,9.999e-05,2]
[343597981,1732743040601,-500.0,9.999e-05,2]
[343597982,1732743040610,-500.0,9.999e-05,2]
[343597983,1732743040619,-198.5,9.999e-05,2]
[343597984,1732743040628,-500.0,9.999e-05,2]
[343597985,1732743040639,-500.0,9.999e-05,2]
[343597986,1732743040649,-500.0,9.999e-05,2]
[343597987,1732743040659,-500.0,9.999e-05,2]
[343597988,1732743040669,-500.0,9.999e-05,2]
[343597989,1732743040679,-500.0,9.999e-05,2]
[343597990,1732743040688,-500.0,9.999e-05,2]
[343597991,1732743040698,-431.88,9.999e-05,2]
[343597992,1732743040707,-500.0,9.999e-05,2]
[343597993,1732743040717,-500.0,9.999e-05,2]
[343597994,1732743040726,-500.0,9.999e-05,2]
[343597995,1732743040736,-500.0,9.999e-05,2]
[343597996,1732743040746,-542.72,9.999e-05,2]
[343597997,1732743040755,-500.0,9.999e-05,2]
[343597998,1732743040764,-500.0,9.999e-05,2]
[343597999,1732743040774,-18800.12960009,9.999e-05,2]
[343598000,1732743040783,-500.0,9.999e-05,2]
[343598001,1732743040792,-611.62,9.999e-05,2]
[343598002,1732743040802,-500.0,9.999e-05,2]
[343598003,1732743040811,-500.0,9.999e-05,2]
[343598004,1732743040821,-500.0,9.999e-05,2]
[343598005,1732743040833,-282.06,9.999e-05,2]
[343598006,1732743040843,-500.0,9.999e-05,2]
[343598007,1732743040852,-500.0,9.999e-05,2]
[343598008,1732743040863,-500.0,9.999e-05,2]
[343598009,1732743040872,-500.0,9.999e-05,2]
[343598010,1732743040883,-500.0,9.999e-05,2]
[343598011,1732743040892,-500.0,9.999e-05,2]
[343598012,1732743040901,-500.0,9.999e-05,2]
[343598013,1732743040912,-500.0,9.999e-05,2]
[343598014,1732743040921,-500.0,9.999e-05,2]
[343598015,1732743041150,-500.0,9.999e-05,2]
[343598016,1732743041160,-500.0,9.999e-05,2]
[343598017,1732743041170,-244.9169,9.999e-05,2]
[343598018,1732743041180,-500.0,9.999e-05,2]
[343598019,1732743041189,-598.71,9.999e-05,2]
[343598020,1732743041199,-500.0,9.999e-05,2]
[343598021,1732743041211,-566.42,9.999e-05,2]
[343598022,1732743041220,-500.0,9.999e-05,2]
[343598023,1732743041230,-500.0,9.999e-05,2]
[343598024,1732743041240,-543.76,9.999e-05,2]
[343598025,1732743041249,-500.0,9.999e-05,2]
[343598026,1732743041258,-211.59,9.999e-05,2]
[343598027,1732743041267,-500.0,9.999e-05,2]
[343598028,1732743041277,-500.0,9.999e-05,2]
[343598029,1732743041286,-500.0,9.999e-05,2]
[343598030,1732743041295,-500.0,9.999e-05,2]
[343598031,1732743041305,-500.0,9.999e-05,2]
[343598032,1732743041314,-160.05,9.999e-05,2]
[343598033,1732743041323,-500.0,9.999e-05,2]
[343598034,1732743041333,-269.95,9.999e-05,2]
[343598035,1732743041343,-500.0,9.999e-05,2]
[343598036,1732743041351,-480.83,9.999e-05,2]
[343598037,1732743041360,-575.76,9.999e-05,2]
[343598038,1732743041370,-500.0,9.999e-05,2]
[343598039,1732743041378,-500.0,9.999e-05,2]
[343598040,1732743041388,-500.0,9.999e-05,2]
[343598041,1732743041396,-500.0,9.999e-05,2]
[343598042,1732743041405,-284.86,9.999e-05,2]
[343598043,1732743041414,-500.0,9.999e-05,2]
[343598044,1732743041423,-500.0,9.999e-05,2]
[343598045,1732743041433,-500.0,9.999e-05,2]
[343598046,1732743041442,-500.0,9.999e-05,2]
[343598047,1732743041451,-500.0,9.999e-05,2]
[343598048,1732743041460,-500.0,9.999e-05,2]
[343598049,1732743041469,-500.0,9.999e-05,2]
[343598050,1732743041479,-500.0,9.999e-05,2]
[343598051,1732743041488,-500.0,9.999e-05,2]
[343598052,1732743041497,-500.0,9.999e-05,2]
[343598053,1732743041507,-515.88,9.999e-05,2]
[343598054,1732743041516,-500.0,9.999e-05,2]
[343598055,1732743041525,-500.0,9.999e-05,2]
[343598056,1732743041534,-500.0,9.999e-05,2]
[343598057,1732743041544,-500.0,9.999e-05,2]
[343598058,1732743041553,-500.0,9.999e-05,2]
[343598059,1732743041562,-313.55,9.999e-05,2]
[343598060,1732743041571,-500.0,9.999e-05,2]
[343598061,1732743041581,-500.0,9.999e-05,2]
[343598062,1732743041592,-500.0,9.999e-05,2]
[343598063,1732743041601,-500.0,9.999e-05,2]
[343598064,1732743041610,-500.0,9.999e-05,2]
[343598065,1732743041619,-500.0,9.999e-05,2]
[343598066,1732743041628,-500.0,9.999e-05,2]
[343598067,1732743041637,-500.0,9.999e-05,2]
[343598068,1732743041646,-500.0,9.999e-05,2]
[343598069,1732743041656,-500.0,9.999e-05,2]
[343598070,1732743041665,-500.0,9.999e-05,2]
[343598071,1732743041674,-500.0,9.999e-05,2]
[343598072,1732743041683,-500.0,9.999e-05,2]
[343598073,1732743041692,-500.0,9.999e-05,2]
[343598074,1732743041702,-500.0,9.999e-05,2]
[343598075,1732743041711,-500.0,9.999e-05,2]
[343598076,1732743041720,-500.0,9.999e-05,2]
[343598077,1732743041729,-406.20852,9.999e-05,2]
[343598078,1732743041738,-500.0,9.999e-05,2]
[343598079,1732743041747,-500.0,9.999e-05,2]
[343598080,1732743041756,-597.15,9.999e-05,2]
[343598081,1732743041766,-500.0,9.999e-05,2]
[343598082,1732743041775,-181.44,9.999e-05,2]
[343598083,1732743041784,-500.0,9.999e-05,2]
[343598084,1732743041793,-500.0,9.999e-05,2]
[343598085,1732743041802,-500.0,9.999e-05,2]
[343598086,1732743041812,-500.0,9.999e-05,2]
[343598087,1732743041821,-500.0,9.999e-05,2]
[343598088,1732743041834,-452.22,9.999e-05,2]
[343598089,1732743041846,-500.0,9.999e-05,2]
[343598090,1732743041855,-500.0,9.999e-05,2]
[343598091,1732743041865,-500.0,9.999e-05,2]
[343598092,1732743041875,-500.0,9.999e-05,2]
[343598093,1732743041884,-500.0,9.999e-05,2]
[343598094,1732743041895,-643.25,9.999e-05,2]
[343598095,1732743041906,-1011.66005944,9.999e-05,2]
[343598096,1732743041916,-500.0,9.999e-05,2]
[343598097,1732743041926,-500.0,9.999e-05,2]
[343598098,1732743041936,-500.0,9.999e-05,2]
[343598099,1732743041945,-500.0,9.999e-05,2]
[343598100,1732743041954,-500.0,9.999e-05,2]
[343598101,1732743041963,-542.43,9.999e-05,2]
[343598102,1732743041972,-500.0,9.999e-05,2]
[343598103,1732743041981,-795.29,9.999e-05,2]
[343598104,1732743041991,-795.29,9.999e-05,2]
[343598105,1732743042001,-795.29,9.999e-05,2]
[343598106,1732743042011,-500.0,9.999e-05,2]
[343598107,1732743042022,-795.29,9.999e-05,2]
[343598108,1732743042032,-500.0,9.999e-05,2]
[343598109,1732743042042,-795.29,9.999e-05,2]
[343598110,1732743042052,-244.61,9.999e-05,2]
[343598111,1732743042062,-500.0,9.999e-05,2]
[343598112,1732743042072,-500.0,9.999e-05,2]
[343598113,1732743042083,-795.29,9.999e-05,2]
[343598114,1732743042092,-795.29,9.999e-05,2]
[343598115,1732743042102,-795.29,9.999e-05,2]
[343598116,1732743042112,-795.29,9.999e-05,2]
[343598117,1732743042122,-795.29,9.999e-05,2]
[343598118,1732743042131,-795.29,9.999e-05,2]
[343598119,1732743042141,-795.29,9.999e-05,2]
[343598120,1732743042150,-795.29,9.999e-05,2]
[343598121,1732743042160,-795.29,9.999e-05,2]
[343598122,1732743042169,-795.29,9.999e-05,2]
[343598123,1732743042178,-795.29,9.999e-05,2]
[343598124,1732743042188,-795.29,9.999e-05,2]
[343598125,1732743042197,-795.29,9.999e-05,2]
[343598126,1732743042208,-795.29,9.999e-05,2]
[343598127,1732743042218,-795.29,9.999e-05,2]
[343598128,1732743042228,-795.29,9.999e-05,2]
[343598129,1732743042237,-795.29,9.999e-05,2]
[343598130,1732743042246,-795.29,9.999e-05,2]
[343598131,1732743042255,-795.36,9.999e-05,2]
[343598132,1732743042267,-1011.66005939,9.999e-05,2]
[343598133,1732743042278,-1011.66005939,9.999e-05,2]
[343598134,1732743042287,-1011.66005939,9.999e-05,2]
[343598135,1732743042297,-1011.66005939,9.999e-05,2]
[343598136,1732743042307,-984157.74385096,0.0001,2]
[343598137,1732743042316,-16782.81822559,0.0001,2]
[343598138,1732743042326,-1931.0,0.0001,2]
[343598139,1732743042336,-562.0,0.0001,2]
[343598140,1732743042345,-1263.0,0.0001,2]
[343598141,1732743042354,-189.16013468,0.0001,2]
[343598142,1732743042610,-626.83986532,0.0001,2]
[343598143,1732743042619,-3756.0,0.0001,2]
[343598144,1732743042629,-3522.0,0.0001,2]
[343598145,1732743042639,-978.0,0.0001,2]
[343598146,1732743042650,-534.0,0.0001,2]
[343598147,1732743042660,-1096.0,0.0001,2]
[343598148,1732743042669,-212.02856413,0.0001,2]
[343598149,1732743042679,-212.02856412,0.0001,2]
[343598150,1732743042688,-212.02856412,0.0001,2]
[343598151,1732743042697,-212.02856412,0.0001,2]
[343598152,1732743042707,-212.02856412,0.0001,2]
[343598153,1732743042717,-212.02856412,0.0001,2]
[343598154,1732743042728,-212.02856412,0.0001,2]
[343598155,1732743042738,-212.02856412,0.0001,2]
[343598156,1732743042747,-212.02856412,0.0001,2]
[343598157,1732743042756,-633.0,0.0001,2]
[343598158,1732743042765,-13688.0,0.0001,2]
[343598159,1732743042774,-565.0,0.0001,2]
[343598160,1732743042784,-1259.0,0.0001,2]
[343598161,1732743042793,-265.916,0.0001,2]
[343598162,1732743042803,-184.084,0.0001,2]
[343598163,1732743042812,-1164.0,0.0001,2]
[343598164,1732743042822,-10555.71305759,0.0001,2]
[343598165,1732743042852,-493.3339008,0.0001,2]
[343598166,1732743042863,-362.36537741,0.0001,2]
[343598167,1732743042877,-364.47,0.0001,2]
[343598168,1732743042926,-1993.46108003,0.0001,2]
[343598169,1732743043019,-422.36469375,0.0001,2]
[343598170,1732743043034,-589.29536564,0.0001,2]
[343598171,1732743043044,-2173.32484645,0.0001,2]
[343598172,1732743043075,-802.63236532,0.0001,2]
[343598179,1732743043669,-1055.69243064,9.798e-05,2]
[343598180,1732743043678,-362.875345,9.922e-05,2]
[343598181,1732743043687,-983.5817082,0.0001,2]
[343598182,1732743043696,-1971146.83664533,0.0001,2]
[343598183,1732743043708,-1939528.68782304,0.0001,2]
[343598184,1732743043887,-96488.00000001,0.0001,2]
[343598185,1732743043899,-49207.65820541,0.0001,2]
[343598186,1732743043911,-2656.22065026,0.0001,2]
[343598210,1732743045848,-407.41843714,0.0001,2]
[343598212,1732743046096,-604.24162225,0.0001,2]
[343598213,1732743046106,-572.48718578,0.0001,2]
[343598214,1732743046191,-308.59268512,0.0001,2]
[343598220,1732743147826,185.386181,0.00026,120]
[343598222,1732743202478,302.0,0.00026,120]
[343598240,1732744161108,-1895.81,8.219e-05,2]
[343598241,1732744161130,-1677.752748,8.219e-05,2]
[343598242,1732744173653,-5644.1299958,8.219e-05,2]
[343598249,1732744207778,-1000.0,8e-05,2]
[343598250,1732744207803,-300.0,8.218e-05,2]
[343598251,1732744207827,-185119.4083102,8.219e-05,2]
[343598252,1732744207854,-500.21,8.703e-05,2]
[343598253,1732744207884,-628.81,8.747e-05,2]
[343598254,1732744207906,-250.0,8.751e-05,2]
[343598255,1732744207929,-1000.0,8.907e-05,2]
[343598256,1732744207952,-493.01,8.912e-05,2]
[343598257,1732744207975,-668.16,8.93e-05,2]
[343598258,1732744207998,-40.4016898,8.98e-05,2]
[343598259,1732744220493,-126.8583102,8.98e-05,2]
[343598260,1732744220516,-1000.35,9e-05,2]
[343598261,1732744232335,-250.0,9.027e-05,2]
[343598262,1732744232345,-420.0,9.04e-05,2]
[343598263,1732744232357,-150.0,9.041e-05,2]
[343598264,1732744232366,-14.740001,9.068e-05,2]
[343598265,1732744232646,-148.179999,9.068e-05,2]
[343598266,1732744232656,-188.28,9.086e-05,2]
[343598267,1732744232666,-434.45,9.241e-05,2]
[343598268,1732744232675,-418.07,9.241e-05,2]
[343598269,1732744232684,-151.16,9.279e-05,2]
[343598270,1732744232695,-434.45,9.341e-05,2]
[343598271,1732744232705,-434.45,9.341e-05,2]
[343598272,1732744232714,-434.45,9.441e-05,2]
[343598273,1732744232725,-434.45,9.441e-05,2]
[343598274,1732744232734,-434.46,9.478e-05,2]
[343598275,1732744232744,-362.86,9.478e-05,2]
[343598276,1732744232753,-300.0,9.478e-05,2]
[343598277,1732744232763,-300.0,9.478e-05,2]
[343598278,1732744232772,-150.0,9.526e-05,2]
[343598279,1732744232782,-12224.45646749,9.527e-05,2]
[343598280,1732744232794,-2607.40035391,9.527e-05,2]
[343598281,1732744232806,-1069.00829095,9.527e-05,2]
[343598329,1732744238470,-4301.46858765,9.527e-05,2]
[343598330,1732744238480,-400.0,9.589e-05,2]
[343598331,1732744238490,-150.0,9.591e-05,2]
[343598332,1732744238499,-747.92681649,9.643e-05,2]
[343598333,1732744238508,-150.0,9.786e-05,2]
[343598334,1732744238518,-1081.8918264,9.8e-05,2]
[343598335,1732744238527,-1065.63079813,9.8e-05,2]
[343598336,1732744238537,-708.581117,9.8e-05,2]
[343598337,1732744238546,-1126.26381628,9.8e-05,2]
[343598338,1732744238556,-628.81,9.84e-05,2]
[343598339,1732744238565,-219.137968,9.863e-05,2]
[343598340,1732744238575,-219.137968,9.863e-05,2]
[343598341,1732744238585,-2794.0,9.898e-05,2]
[343598342,1732744238594,-3133.0224,9.899e-05,2]
[343598343,1732744238603,-7640.7227,9.899e-05,2]
[343598344,1732744238615,-500.0,9.906e-05,2]
[343598345,1732744238624,-500.0,9.906e-05,2]
[343598346,1732744238634,-500.0,9.906e-05,2]
[343598347,1732744238643,-544.97,9.906e-05,2]
[343598348,1732744238653,-500.0,9.906e-05,2]
[343598349,1732744238662,-500.0,9.906e-05,2]
[343598350,1732744238672,-500.0,9.906e-05,2]
[343598352,1732744238682,-500.0,9.906e-05,2]
[343598354,1732744238691,-500.0,9.907e-05,2]
[343598356,1732744238701,-422.72,9.907e-05,2]
[343598358,1732744238710,-500.0,9.907e-05,2]
[343598360,1732744238719,-427.98,9.907e-05,2]
[343598362,1732744238728,-500.0,9.907e-05,2]
[343598364,1732744238737,-500.0,9.907e-05,2]
[343598366,1732744238747,-541.66,9.907e-05,2]
[343598368,1732744238756,-500.0,9.907e-05,2]
[343598370,1732744238766,-750.92,9.907e-05,2]
[343598372,1732744238779,-500.0,9.907e-05,2]
[343598374,1732744238788,-500.0,9.907e-05,2]
[343598376,1732744238797,-500.0,9.907e-05,2]
[343598378,1732744238806,-500.0,9.907e-05,2]
[343598380,1732744238815,-429.4,9.907e-05,2]
[343598382,1732744238825,-585.41,9.907e-05,2]
[343598384,1732744238835,-890.93,9.907e-05,2]
[343598385,1732744238846,-500.0,9.907e-05,2]
[343598388,1732744238856,-500.0,9.907e-05,2]
[343598389,1732744238869,-500.0,9.907e-05,2]
[343598391,1732744238878,-500.0,9.907e-05,2]
[343598393,1732744238887,-500.0,9.907e-05,2]
[343598395,1732744238896,-500.0,9.907e-05,2]